Cogmind - Beta 13 @@@ ROGUE MODE // 2024.04.30 @ 23:52:29 Player: puppuppit Result: Destroyed by LG-9L4(R) with Subdweller Beam Cannon Performance ------------- Evolutions (0) 0 Regions Visited (2) 400 Robots Destroyed (65) 325 Value Destroyed (938) 938 Prototype IDs (3) 60 Alien Tech Used (0) 0 Bonus (0) 0 TOTAL SCORE: 1723 Bonus ------- None Cogmind --------- Core Integrity 0/250 Matter 288/300 Energy 170/170 System Corruption 1% Temperature Cool (9) Movement Rolling (110) Location -10/Subcaves Parts ------- > --- POWER (1) -------- Makeshift Power Source > --- PROPULSION (2) --- Subdweller Monowheel > --- UTILITY (2) ------ Hardened Light Armor Plating Makeshift Hacking Suite > --- WEAPON (2) ------- Improved Assault Rifle Improved Assault Rifle > --- INVENTORY (5) ---- High-capacity Matter Pod (200) Scrap Shield Scrap Shield Fragment (48) Scrap Shield Fragment (48) Peak State ------------ > --- POWER ------------ Makeshift Power Source > --- PROPULSION ------- Subdweller Monowheel > --- UTILITY ---------- Hardened Light Armor Plating Makeshift Hacking Suite > --- WEAPON ----------- Improved Assault Rifle Improved Assault Rifle > --- INVENTORY -------- High-capacity Matter Pod Scrap Shield Scrap Shield Fragment Scrap Shield Fragment [Rating: 18] Favorites ----------- Power Light Ion Engine Engine Light Ion Engine Propulsion Subdweller Monowheel Wheel Subdweller Monowheel Hover Unit Hover Unit Utility Small Storage Unit Device Improved Terrain Scanner Storage Small Storage Unit Processor Targeting Computer Hackware Makeshift Hacking Suite Protection Hardened Light Armor Plating Weapon Improved Assault Rifle Ballistic Gun Improved Assault Rifle Build | -11 -10 -10 ------- Run | Yrd Mat Sub Slots Evolved . | . . . Power . | . . . Propulsion . | . . . Utility . | . . . Weapon . | . . . Parts Attached 38 | 8 14 16 Power 2 | 1 . 1 Engine 2 | 1 . 1 Core . | . . . Reactor . | . . . Propulsion 13 | 3 5 5 Treads . | . . . Leg . | . . . Wheel 9 | 3 1 5 Hover 4 | . 4 . Flight . | . . . Utility 16 | 2 7 7 Device 3 | 1 2 . Storage 1 | 1 . . Processor 2 | . 1 1 Hackware 2 | . 1 1 Protection 8 | . 3 5 Artifact . | . . . Weapon 7 | 2 2 3 Energy Gun . | . . . Energy Cannon . | . . . Ballistic Gun 7 | 2 2 3 Ballistic Cannon . | . . . Launcher . | . . . Special Weapon . | . . . Impact Weapon . | . . . Slashing Weapon . | . . . Piercing Weapon . | . . . Special Melee Weapon . | . . . Unidentified Prototypes 1 | . 1 . Parts Lost 2 | . 1 1 Power . | . . . Propulsion 2 | . 1 1 Utility . | . . . Weapon . | . . . Highest Loss Streak 1 | . 1 1 To Critical Strikes . | . . . Average Slot Usage (%) 81 | . 91 72 Engine 3 | . 6 1 Wheel 16 | . 13 19 Hover 7 | . 14 1 Device 2 | . 5 . Storage 7 | . 14 . Hackware 2 | . . 3 Protection 11 | . 8 15 Ballistic Gun 28 | . 28 28 Naked Turns . | . . . Heaviest Build 24 | 11 19 24 Greatest Support 40 | 26 20 40 Greatest Overweight (x) 7 | . . 7 Average Overweight (x) . | . . . Largest Inventory Capacity 8 | 8 8 8 Average Capacity 6 | 7 8 5 Most Carried 8 | 7 8 8 Average Carried 6 | 2 7 5 Final Capacity 8 | 8 8 5 Final Carried 8 | 7 8 5 Class Distribution -------------------- 85% | Mutant 14% | Subdweller-Mutant Dominant Class ---------------- Mutant | -10/Materials Mutant | -10/Subcaves Resources | -11 -10 -10 ----------- Run | Yrd Mat Sub Matter Collected 2024 | 460 1162 402 Remotely . | . . . Salvage Created 2335 | 242 1746 347 Parts 129 | 20 94 15 Haulers Intercepted 2 | . 2 . Recyclers Shooed 5 | . 5 . Parts Field Recycled . | . . . Retrieved Matter . | . . . Parts Self-Destructed . | . . . Prevented . | . . . Kills | -11 -10 -10 ------- Run | Yrd Mat Sub Combat Hostiles Destroyed 20 | . 11 9 Guns 20 | . 11 9 Classes Destroyed 11 | 3 6 2 Worker 14 | 2 12 . Builder 6 | . 6 . Tunneler 9 | 5 4 . Hauler 2 | . 2 . Recycler 11 | 1 10 . Operator 1 | . 1 . Watcher 2 | . 2 . Swarmer 4 | . 3 1 Grunt 8 | . 8 . Sentry 1 | . . 1 Subdweller 7 | . . 7 Best Kill Streak 7 | 6 7 2 Combat Bots Only 3 | . 3 2 Max Kills in Single Turn 2 | 1 2 1 Gunslinging 1 | . 1 . Exploded . | . . . Melee . | . . . Uniques/NPCs Destroyed . | . . . Combat | -11 -10 -10 -------- Run | Yrd Mat Sub Hostile Shots Fired 97 | . 49 48 Missed 28 | . 15 13 Damage Taken 1159 | . 421 738 Core 255 | . 124 131 Absorbed by Shields . | . . . Redirected to Shielding 17 | . . 17 Regen/Repaired (Parts) 20 | . 20 . Core Remaining (%) 100 | 100 . . Volleys Fired 196 | 24 140 32 Largest 2 | 2 2 2 Hottest 46 | 40 46 46 Shots Fired 392 | 48 280 64 Gun 392 | 48 280 64 Cannon . | . . . Launcher . | . . . Special . | . . . Kinetic 392 | 48 280 64 Thermal . | . . . Explosive . | . . . Electromagnetic . | . . . Robot Hit Streak 21 | 12 12 21 Robot Miss Streak 5 | 3 5 1 Penetration Max . | . . . Secondary Targets 3 | . 2 1 Max Gunslinging Chain 1 | . 1 1 Shots Hit Robots 260 | 32 173 55 Core Hits 97 | 15 64 18 Critical Kills 1 | . 1 . Critical Parts Destroyed 1 | 1 . . Critical Strikes 3 | 1 1 1 Destroy 3 | 1 1 1 Melee Attacks . | . . . Impact . | . . . Slashing . | . . . Piercing . | . . . Sneak Attacks . | . . . Combat Hostiles . | . . . Follow-up Attacks . | . . . Damage Inflicted 3602 | 257 2527 818 Guns 3602 | 257 2527 818 Cannons . | . . . Explosions . | . . . Melee . | . . . Ramming . | . . . Kinetic 3602 | 257 2527 818 Thermal . | . . . Explosive . | . . . Electromagnetic . | . . . Impact . | . . . Slashing . | . . . Piercing . | . . . Highest Corruption 1 | . 1 1 Average Corruption 1 | . 1 1 Corruption Purged . | . . . Corruption Blocked . | . . . Effects 10 | . 1 9 Message Errors 3 | . . 3 Matter Fused 3 | . 1 2 Heat Flow Errors 1 | . . 1 Energy Discharges 1 | . . 1 Data Loss (major) 1 | . . 1 Alerts 1 | . . 1 Overload Shots . | . . . Overflow Damage . | . . . Projectiles . | . . . Explosions . | . . . Melee . | . . . Knockbacks . | . . . Impact . | . . . Kinetic . | . . . Secondary . | . . . Self-Inflicted Damage . | . . . Shots . | . . . Rammed . | . . . Targets Rammed . | . . . Kicked . | . . . Crushed . | . . . Highest Temperature 95 | . 33 95 Average Temperature 17 | . 14 50 Received Heat Transfer 318 | . 225 93 Siege Activations . | . . . Robots Corrupted . | . . . Combat Hostiles . | . . . Parts Fried . | . . . Impact Corruptions . | . . . Robots Melted . | . . . Combat Hostiles . | . . . Parts Melted . | . . . Heat Transferred . | . . . Parts Sabotaged . | . . . Parts Stolen . | . . . Parts Stripped . | . . . Power Chain Reactions . | . . . Alert | -11 -10 -10 ------- Run | Yrd Mat Sub Peak Influence 338 | 40 338 . Initial 26 | . 26 . Average 123 | 19 136 . Maximum Alert Level 1 | . 1 . Low Security (%) 79 | 100 76 . Level 1 20 | . 23 . Level 2 . | . . . Level 3 . | . . . Level 4 . | . . . Level 5 . | . . . High Security . | . . . Max Security . | . . . Squads Dispatched 3 | . 3 . Investigation 2 | . 2 . Extermination . | . . . Reinforcement 1 | . 1 . Assault . | . . . Garrison . | . . . Intercept . | . . . Searches Triggered . | . . . Construction Impeded . | . . . Haulers Reinforced . | . . . Active Scanning Responses . | . . . Cargo Convoy Interrupts . | . . . Stealth | -11 -10 -10 --------- Run | Yrd Mat Sub Distress Signals 1 | . 1 . Communications Jammed . | . . . Distress Signals . | . . . Times Spotted 28 | . 17 11 Peak Tracking Total 3 | . 3 2 Tactical Retreats 1 | . 1 . Traps | -11 -10 -10 ------- Run | Yrd Mat Sub Traps Triggered . | . . . Indirectly . | . . . Trap Hack Attempts . | . . . Triggered . | . . . Disarmed . | . . . Reprogrammed . | . . . Reused . | . . . Traps Extracted . | . . . Installed . | . . . Triggered . | . . . Machines | -11 -10 -10 ---------- Run | Yrd Mat Sub Machines Disabled 5 | . 5 . Max in Single Turn 1 | . 1 . Machines Repaired . | . . . Machines Dismantled . | . . . Machines Sabotaged . | . . . Overloaded Fab Kills . | . . . Hacking | -11 -10 -10 --------- Run | Yrd Mat Sub Machines Accessed 7 | . 7 . Terminals 6 | . 6 . Fabricators . | . . . Repair Stations 1 | . 1 . Recycling Units . | . . . Scanalyzers . | . . . Garrison Access . | . . . Total Hacks 22 | . 22 . Successful 6 | . 6 . Failed 15 | . 15 . Catastrophic 3 | . 3 . Database Lockouts 1 | . 1 . Manual 8 | . 8 . Terminals 20 | . 20 . Fabricators . | . . . Repair Stations 2 | . 2 . Recycling Units . | . . . Scanalyzers . | . . . Garrison Access . | . . . Terminal Hacks 4 | . 4 . Record 1 | . 1 . Robot Analysis 2 | . 2 . Prototype ID Bank 1 | . 1 . Fabricator Hacks . | . . . Repair Station Hacks 2 | . 2 . Scan Component 1 | . 1 . Repair 1 | . 1 . Recycling Unit Hacks . | . . . Scanalyzer . | . . . Garrison Access Hacks . | . . . Unauthorized Hacks . | . . . Terminals . | . . . Fabricators . | . . . Repair Stations . | . . . Recycling Units . | . . . Scanalyzers . | . . . Garrison Access . | . . . Data Cores Recovered . | . . . Used . | . . . Hacking Detections 7 | . 7 . Full Trace Events 3 | . 3 . Feedback Events 1 | . 1 . Corruption 1 | . 1 . Feedback Blocked . | . . . Robot Schematics Acquired . | . . . Robots Built . | . . . Authchips . | . . . Time . | . . . Total Robot Build Rating . | . . . Part Schematics Acquired . | . . . Parts Built . | . . . Authchips . | . . . Time . | . . . Total Part Build Rating . | . . . Parts Repaired 1 | . 1 . Time 26 | . 26 . Parts Recycled . | . . . Recycled Matter . | . . . Retrieved Matter . | . . . Retrieved Components . | . . . Parts Scanalyzed . | . . . Part Schematics Acquired . | . . . Parts Damaged . | . . . Bothacking | -11 -10 -10 ------------ Run | Yrd Mat Sub Used RIF Installer . | . . . Robots Hacked . | . . . Non-combat . | . . . Combat . | . . . Robot Hacks Applied . | . . . Relay Couplers Released . | . . . Fabnet Peak Effective % . | . . . Robots Rewired . | . . . Allies Hacked . | . . . Hacks Repelled . | . . . Allies | -11 -10 -10 -------- Run | Yrd Mat Sub Total Allies . | . . . Largest Group . | . . . Highest-Rated Group . | . . . Highest-Rated Ally . | . . . Total Orders . | . . . Ally Attacks . | . . . Total Damage . | . . . Kills . | . . . Allies Corrupted . | . . . Allies Melted . | . . . Intel | -11 -10 -10 ------- Run | Yrd Mat Sub Robot Analysis Total 2 | . 2 . Derelict Logs Recovered 2 | . . 2 Drone Launches . | . . . Drone Recoveries . | . . . Exploration | -11 -10 -10 ------------- Run | Yrd Mat Sub Turns Passed 2691 | 150 1198 1343 Spaces Moved 2233 | 81 1074 1078 Core 129 | 3 . 126 Treads . | . . . Legs . | . . . Wheels 1402 | 78 429 895 Hover 702 | . 645 57 Flight . | . . . Fastest Speed 50 | 50 56 56 Average Speed 86 | 83 65 107 Slowest Speed 400 | 100 80 400 Overloaded Moves . | . . . Propulsion Burnouts . | . . . Robots Hopped . | . . . Cave-ins Triggered . | . . . Exploration Rate (%) 49 | 3 99 45 Regions Visited 2 Branch Regions 1 Pre-discovered Areas 1 | . . 1 Known Exits Taken . | . . . Unknown Exits Taken 2 | 1 1 . Scrap Searched 6 | . . 6 Spaces Dug . | . . . Terrain Destroyed . | . . . Melee . | . . . Projectile . | . . . AOE . | . . . Terrain Rammed . | . . . Walls Destroyed . | . . . Machines Disabled . | . . . Actions | -11 -10 -10 --------- Run | Yrd Mat Sub Total 2619 | 120 1301 1198 Wait 73 | . 36 37 Move 2231 | 80 1073 1078 Hop . | . . . Pick Up 30 | 7 15 8 Fast Attach 22 | 7 6 9 Attach 3 | . 1 2 Detach 8 | . 3 5 Swap 13 | 1 7 5 Drop 37 | 1 20 16 Fire 196 | 24 140 32 Melee . | . . . Ram . | . . . Kick . | . . . Crush . | . . . Escape Stasis . | . . . Rewire . | . . . Trap . | . . . Miscellaneous 6 | . . 6 Route ------- -11/Scrapyard -10/Materials (discovered 5 exits: [*Mat x3] / [*Min] / [*Sub]) -10/Subcaves (discovered 1 exit: [*Mat]) History --------- Turn | Location | Event 11 | -11/Scrapyard | Discovered new exit (range 16) 151 | -11/Scrapyard | Entered Materials 178 | -10/Materials | Discovered new exit (range 4) 222 | -10/Materials | Central database locked down 232 | -10/Materials | Discovered new exit (range 15) 311 | -10/Materials | Build established: Mutant 369 | -10/Materials | Discovered new exit (range 5) 994 | -10/Materials | Repaired Hover Unit 1120 | -10/Materials | Discovered new exit (range 15) 1285 | -10/Materials | Discovered new exit (range 8) 1349 | -10/Materials | Entered Subcaves 1373 | -10/Subcaves | Shifting Twisted Machinery released Ripper 1373 | -10/Subcaves | Ambushed by Subdwellers from Twisted Machinery 1392 | -10/Subcaves | Core integrity fell below 50% 1454 | -10/Subcaves | Shifting Twisted Machinery released Flamer 1597 | -10/Subcaves | Discovered new exit (range 13) 1631 | -10/Subcaves | Learned location of Zion (-6) 1641 | -10/Subcaves | Disturbed a concealed Subdweller 2050 | -10/Subcaves | Build established: Subdweller-Mutant 2446 | -10/Subcaves | Build established: Mutant 2680 | -10/Subcaves | Learned location of 1 exit from Materials 2691 | -10/Subcaves | Core integrity fell below 20% 2692 | -10/Subcaves | Destroyed by LG-9L4(R) with Subdweller Beam Cannon Last Messages --------------- 02497_ Discarded Targeting Computer. 02497_ Acquired Hrd. Light Armor Plating. 02499_ Extracted 38 matter. 02534_ JRFRVVGSVUB2UC 5P MNTV>M 02541_ Searching scrap... 02541_ Found Battle Cannon. 02541_ Found Mak. Power Source. 02541_ Found 20 Matter. 02543_ Acquired Mak. Power Source. 02566_ System corrupted: Heat flow error (+125). 02591_ Searching scrap... 02591_ Found Mak. Sword. 02591_ Found Sub. Laser. 02591_ Found 34 Matter. 02592_ Acquired 10 matter. 02592_ Searching scrap... 02592_ Found Barrage Gun. 02592_ Found 26 Matter. 02680_ Acquired derelict log, extracted data. Data stored: Materials exits (x1). Map ----- +----------------------------------------------------+ | ##??#####?## #??????????????????????????? | | #??# ##### ##?????????????????????????? | | ##?# ## #?????????????????????????? | | #?# ### #?????????????????????????? | | #?## ### #?????????????????????????? | | #???# ### ### #?????????????????????????? | | ##??## #??##?????????????????????????? | | ####### #?????????????????????????????? | | #### #?????????????????????????????? | | ### ] ##?????????????????????????????? | | ## % # #####??????????????????????????? | | # ### ## ##?????????????????????????? | | ## #?# #?????????????????????????? | | ## #?# #?????????????????????????? | | #### ### #??????#??????????????????? | | #??# ## ##??? ##?????????????????? | | # ## ### #?????????????????? | | # # ## #?????????????????? | | ### ## ### ##????????????????? | | ??# ###### #????????????????? | | ??# #??# ######## ###???????????????? | | ??# #??## ##??????? ### ????????????? | | ??# ###?## #????????""" ?????????????? | | ?? ## ## #####??? """"""??????????????? | | ?# # # #### #?????????????????? | | ?## ### ## # @ R #??????????????????? | | ?? #??### ###?## R #??????????????????? | | ??# ??????# ##???# # ###;# ##??????????????????? | | ??##??????? #????#####?### #???????????????????? | | ???????????##????????????# #???????????????????? | | ?????????????????????????# ##???????????????????? | | ????????????????????????? ????????????????????? | | ?????????????????????????# ????????????????????? | | ????????????????????????? # ##???????????????????? | | ?????????????????????????#?##????????????????????? | | ?????????????????????????????????????????????????? | | ?????????????????????????????????????????????????? | | ?????????????????????????????????????????????????? | | ?????????????????????????????????????????????????? | | ?????????????????????????????????????????????????? | | ?????????????????????????????????????????????????? | | ?????????????????????????????????????????????????? | | ?????????????????????????????????????????????????? | | ?????????????????????????????????????????????????? | | ?????????????????????????????????????????????????? | | ?????????????????????????????????????????????????? | | ?????????????????????????????????????????????????? | | ?????????????????????????????????????????????????? | | ?????????????????????????????????????????????????? | | ?????????????????????????????????????????????????? | +----------------------------------------------------+ Best States ------------- Heat Dissipation 25 Energy Generation 15 Energy Capacity 170 Matter Stores 300 Matter Capacity 300 Sight Range 16 Terrain Scan Range 16 Terrain Scan Density 10 Armor Coverage 800 Core Shielding 20 Evasion (%) 53 Targeting Accuracy 5 Offensive Hacking 11 Item Schematics ----------------- None Robot Schematics ------------------ None Fabricated ------------ Nothing Alien Tech Used ----------------- None Achievements -------------- None Challenges ------------ None Game ------ Seed LightOmegaBeam Manual? 0 Play Time 00:25:16 Cumulative 285.6 hours Start 2024.04.30 @ 23:29:53 End 2024.04.30 @ 23:52:29 Sessions 1 Manual Loads 0 Difficulty Rogue Special Mode None Game No. 114 Rogue 114 Adventurer 0 Explorer 0 Win Type - Total 1 Types 0/0/1/0/0/0/0/0/0 Lore% 65 Gallery% 73 Achievement% 59 Wizard Run 0 Options --------- Layout 0 ASCII 0 Keyboard 1 Movement Arrows Keybinds 0 Fullscreen 1 Font 12/Proggy Map View 83x54 Zoom Use 0% Tactical HUD 1 Map Filters NONE Filters NONE Steam 0 RUN: e35688a4-83f4-4523-876b-2acd65f1a366